bitfinex-derivatives/quotes_BTCF0:USTF0_20210707
["timestamp","ask_amount","ask_price","bid_price","bid_amount"]
[1625627081054,2.56724735,34236.0,34235.0,0.24057544]
[1625627082377,2.80782279,34236.0,34235.0,0.24057544]
[1625627082857,4.0085374,34236.0,34235.0,0.24057544]
[1625627084538,2.80782279,34236.0,34235.0,0.24057544]
[1625627085799,7.99702279,34236.0,34235.0,0.24057544]
[1625627086706,8.95757165,34236.0,34235.0,0.24057544]
[1625627095722,8.95757165,34236.0,34235.0,0.40831204]
[1625627097831,10.33148114,34236.0,34235.0,0.24057544]
[1625627100231,10.33148114,34236.0,34235.0,0.40845997]
[1625627100475,10.33148114,34236.0,34235.0,0.74417936]
[1625627103116,10.36597159,34236.0,34235.0,0.74417936]
[1625627103477,10.36597159,34236.0,34235.0,1.08028399]
[1625627104617,10.36597159,34236.0,34235.0,1.15268399]
[1625627104737,10.36597159,34236.0,34235.0,1.22508399]
[1625627106000,10.36597159,34236.0,34235.0,0.88916978]
[1625627106604,10.60654703,34236.0,34235.0,0.88916978]
[1625627107144,10.60654703,34236.0,34235.0,0.72109483]
[1625627107385,10.60654703,34236.0,34235.0,0.88916274]
[1625627108225,10.60654703,34236.0,34235.0,0.63750466]
[1625627109305,10.60654703,34236.0,34235.0,0.39692922]
[1625627109426,12.15442754,34236.0,34235.0,0.1448]
[1625627114653,12.15442754,34236.0,34235.0,0.38537544]
[1625627124930,7.35177309,34236.0,34235.0,0.38537544]
[1625627125231,12.17056096,34236.0,34235.0,0.38537544]
[1625627135575,6.98136096,34236.0,34235.0,0.38537544]
[1625627135695,6.65614096,34236.0,34235.0,0.73575544]
[1625627135874,6.65614096,34236.0,34235.0,1.24154531]
[1625627136535,6.65614096,34236.0,34235.0,1.91580497]
[1625627136896,10.37924096,34236.0,34235.0,1.91580497]
[1625627138103,6.65614096,34236.0,34235.0,1.91580497]
[1625627138281,4.86768501,34236.0,34235.0,2.92661705]
[1625627138400,4.83319456,34236.0,34235.0,2.93077465]
[1625627138522,2.25181782,34236.0,34235.0,5.45479469]
[1625627138762,1.21923271,34236.0,34235.0,5.45479469]
[1625627138881,1.21923271,34236.0,34235.0,5.69537013]
[1625627140263,2.25184307,34236.0,34235.0,5.69537013]
[1625627140984,1.21923271,34236.0,34235.0,5.69537013]
[1625627141105,2.25162557,34236.0,34235.0,5.69537013]
[1625627141345,1.21923271,34236.0,34235.0,5.69537013]
[1625627141588,2.25163614,34236.0,34235.0,5.69537013]
[1625627141709,2.23722945,34236.0,34235.0,5.69121253]
[1625627142007,2.25172392,34236.0,34235.0,5.69121253]
[1625627142248,2.23722945,34236.0,34235.0,5.69121253]
[1625627142368,1.20482602,34236.0,34235.0,5.69121253]
[1625627142791,0.51637859,34236.0,34235.0,5.69121253]
[1625627143028,1.21902022,34236.0,34235.0,5.69121253]
[1625627143750,2.2510483,34236.0,34235.0,5.69121253]
[1625627143930,2.23655413,34236.0,34235.0,5.69121253]
[1625627144110,1.20452605,34236.0,34235.0,5.69121253]
[1625627144770,2.23639627,34236.0,34235.0,5.69121253]
[1625627145133,2.25089109,34236.0,34235.0,5.69121253]
[1625627145251,1.21902087,34236.0,34235.0,5.69121253]
[1625627145491,2.2508629,34236.0,34235.0,5.69121253]
[1625627145795,2.23636808,34236.0,34235.0,5.69121253]
[1625627146271,2.23636808,34236.0,34235.0,4.34506851]
[1625627146451,2.25086499,34236.0,34235.0,4.34506851]
[1625627146631,2.25086499,34236.0,34235.0,5.68960621]
[1625627146752,2.23636808,34236.0,34235.0,5.68960621]
[1625627146874,1.20452605,34236.0,34235.0,5.68960621]
[1625627147113,2.23625687,34236.0,34235.0,5.68960621]
[1625627147354,1.20452605,34236.0,34235.0,4.34506851]
[1625627148016,1.20452605,34236.0,34235.0,5.68938305]
[1625627148256,1.20452605,34236.0,34235.0,4.34506851]
[1625627148497,1.20452605,34236.0,34235.0,5.68947733]
[1625627148735,1.20452605,34236.0,34235.0,4.34506851]
[1625627148975,2.23614458,34236.0,34235.0,4.34506851]
[1625627149575,2.57024458,34236.0,34235.0,4.34506851]
[1625627150660,2.23614458,34236.0,34235.0,4.34506851]
[1625627151021,1.20452605,34236.0,34235.0,4.34506851]
[1625627151142,1.44510149,34236.0,34235.0,4.34506851]
[1625627152766,1.20452605,34236.0,34235.0,4.34506851]
[1625627156618,0.51637859,34236.0,34235.0,4.34506851]
[1625627161675,1.20378313,34236.0,34235.0,4.34506851]
[1625627161791,1.21821834,34236.0,34235.0,4.34506851]
[1625627162634,0.5308138,34236.0,34235.0,4.34506851]
[1625627162813,0.51637859,34236.0,34235.0,4.34506851]
[1625627163053,0.86016616,34236.0,34235.0,4.34506851]
[1625627163301,0.5157577,34236.0,34235.0,5.68624978]
[1625627163533,0.60182866,34236.0,34235.0,5.68624978]
[1625627163661,0.70326366,34236.0,34235.0,5.20926045]
[1625627163775,0.61626366,34236.0,34235.0,4.85888045]
[1625627163956,0.61626366,34236.0,34232.0,1.50971114]
[1625627163957,8.33093201,34236.0,34232.0,0.001]
[1625627164076,6.40659013,34236.0,34232.0,0.001]
[1625627164194,0.04893664,34235.0,34232.0,0.001]
[1625627164374,8.07741063,34233.0,34232.0,0.001]
[1625627164495,8.92494063,34233.0,34232.0,0.001]
[1625627164614,8.92494063,34233.0,34227.0,0.002]
[1625627164794,9.1801368,34233.0,34227.0,0.002]
[1625627164915,8.07954975,34228.0,34227.0,0.002]
[1625627165037,8.57954975,34228.0,34227.0,0.002]
[1625627165156,8.57954975,34228.0,34222.0,0.003]
[1625627165157,8.78559988,34228.0,34222.0,0.003]
[1625627165339,9.74790164,34228.0,34222.0,0.003]
[1625627165457,0.0345164,34227.0,34222.0,0.003]
[1625627165577,8.07192016,34223.0,34220.0,0.8693]
[1625627165696,0.5,34222.0,34220.0,0.8229]
[1625627165821,8.07224774,34221.0,34220.0,0.7977]
[1625627165940,8.57224774,34221.0,34220.0,0.7977]
[1625627166060,8.12122494,34221.0,34220.0,0.7798]
[1625627166300,6.40380946,34221.0,34220.0,0.7798]
[1625627166539,6.36929096,34221.0,34220.0,0.7798]
[1625627167080,4.82359985,34221.0,34220.0,0.7798]
[1625627167201,5.30475073,34221.0,34220.0,0.7798]
[1625627167321,5.29029203,34221.0,34220.0,0.7798]
[1625627167619,5.30473601,34221.0,34220.0,0.7798]
[1625627168040,5.55724601,34221.0,34220.0,0.7798]
[1625627168580,5.54280203,34221.0,34220.0,0.7798]
[1625627168823,7.0870073,34221.0,34220.0,0.7798]
[1625627169062,5.54280203,34221.0,34220.0,0.7798]
[1625627173147,5.29029203,34221.0,34220.0,0.7798]
[1625627173807,5.29029203,34221.0,34218.0,0.003]
[1625627173989,5.56205203,34221.0,34218.0,0.003]
[1625627174168,4.79437027,34219.0,34218.0,0.003]
[1625627174829,5.29437027,34219.0,34218.0,0.003]
[1625627174953,5.30883192,34219.0,34213.0,0.004]
[1625627175069,2.73990024,34214.0,34213.0,0.004]
[1625627175250,7.1715188,34214.0,34208.0,0.005]
[1625627175369,9.60568356,34214.0,34208.0,0.005]
[1625627175491,6.3368208,34209.0,34208.0,0.005]
[1625627175610,6.8368208,34209.0,34195.0,0.169138]
[1625627175731,0.057,34208.0,34192.0,0.25402689]
[1625627175851,0.057,34208.0,34191.0,0.50805377]
[1625627175852,0.51398941,34193.0,34191.0,0.50805377]
[1625627175971,0.72845941,34193.0,34189.0,0.25432871]
[1625627176215,0.47127004,34193.0,34186.0,0.25395831]
[1625627176390,0.52827004,34193.0,34186.0,0.25395831]
[1625627176572,0.87038066,34193.0,34186.0,0.08465277]
[1625627176811,0.08564526,34192.0,34185.0,0.25398384]
[1625627177056,0.08564498,34191.0,34184.0,0.25407531]
[1625627177173,0.14264498,34191.0,34184.0,0.25407531]
[1625627177293,0.24057544,34189.0,34188.0,0.24057544]
[1625627181256,0.24057544,34189.0,34184.0,0.24057544]
[1625627183300,0.24057544,34185.0,34184.0,0.24057544]
[1625627202352,0.001,34186.0,34184.0,0.50342544]
[1625627202650,0.002,34191.0,34184.0,0.58686031]
[1625627202830,0.002,34191.0,34185.0,0.00415426]
[1625627203010,0.002,34191.0,34185.0,0.58785955]
[1625627203250,0.002,34191.0,34186.0,0.08338754]
[1625627203494,0.002,34191.0,34190.0,0.72172632]
[1625627203735,0.002,34191.0,34190.0,0.72587995]
[1625627206256,0.001,34192.0,34190.0,0.72587995]
[1625627206675,0.001,34192.0,34191.0,0.00415034]
[1625627206916,0.001,34192.0,34190.0,0.72172632]
[1625627207399,0.24157544,34192.0,34190.0,0.72172632]
[1625627208602,0.01450296,34191.0,34190.0,0.72172632]
[1625627209082,0.24157544,34192.0,34190.0,0.72172632]
[1625627209382,0.01452122,34191.0,34190.0,0.72172632]
[1625627210166,0.24157544,34192.0,34190.0,0.72172632]
[1625627212510,0.01452126,34191.0,34190.0,0.72172632]
[1625627212628,0.25242126,34191.0,34190.0,0.72172632]
[1625627222008,0.01452126,34191.0,34190.0,0.72172632]
[1625627224052,0.01452126,34191.0,34190.0,0.97565721]
[1625627224293,0.01452126,34191.0,34190.0,1.22938649]
[1625627224954,0.01452126,34191.0,34190.0,0.72172632]
[1625627225319,0.01452126,34191.0,34190.0,1.90679428]
[1625627226516,0.01452126,34191.0,34190.0,1.22981205]
[1625627227177,0.01452126,34191.0,34190.0,1.2301855]
[1625627227414,0.10042914,34191.0,34190.0,1.56917873]
[1625627227653,0.10042914,34191.0,34190.0,1.2301855]
[1625627227896,0.10042914,34191.0,34190.0,1.56912156]
[1625627228136,0.27207507,34191.0,34190.0,1.2301199]
[1625627229157,0.87290534,34191.0,34190.0,1.90887587]
[1625627229396,0.52951739,34191.0,34190.0,1.2305047]
[1625627229638,0.52951739,34191.0,34190.0,1.5697324]
[1625627229819,1.21613997,34191.0,34190.0,1.23060048]
[1625627230116,2.2468732,34191.0,34190.0,1.23111533]
[1625627230357,2.2468732,34191.0,34190.0,1.91027872]
[1625627230539,2.2468732,34191.0,34190.0,1.23111533]
[1625627231558,2.2468732,34191.0,34190.0,1.91040422]
[1625627231857,1.21613997,34191.0,34190.0,1.91040422]
[1625627232221,2.24814946,34191.0,34190.0,2.93020812]
[1625627233181,3.45222679,34191.0,34190.0,2.93020812]
[1625627233841,3.45222679,34191.0,34190.0,1.91040422]
[1625627234385,4.83034758,34191.0,34190.0,1.91040422]
[1625627234504,4.83034758,34191.0,34190.0,2.93166527]
[1625627235527,4.83034758,34191.0,34190.0,3.22872527]
[1625627235650,3.45222679,34191.0,34190.0,4.42285657]
[1625627236067,3.45222679,34191.0,34190.0,5.78249352]
[1625627236914,2.24814946,34191.0,34190.0,5.78249352]
[1625627237997,3.45394267,34191.0,34190.0,5.78249352]
[1625627238716,3.45394267,34191.0,34190.0,4.42285657]
[1625627238836,4.8320109,34191.0,34190.0,4.12165167]
[1625627239016,4.8320109,34191.0,34190.0,2.93166527]
[1625627239257,4.8320109,34191.0,34190.0,2.69108983]
[1625627239441,4.8320109,34191.0,34190.0,2.45051439]
[1625627239737,5.07258634,34191.0,34190.0,2.20993895]
[1625627239919,5.07258634,34191.0,34190.0,1.1886779]
[1625627240158,5.10711826,34191.0,34190.0,1.1886779]
[1625627240398,5.10711826,34191.0,34190.0,0.50938901]
[1625627240640,6.65758352,34191.0,34190.0,0.8499389]
[1625627241359,6.65758352,34191.0,34190.0,0.34054989]
[1625627241901,6.65758352,34191.0,34190.0,0.25545415]
[1625627242801,6.65758352,34191.0,34190.0,0.08515138]
[1625627243102,6.65758352,34191.0,34190.0,0.25545848]
[1625627243221,6.65758352,34191.0,34190.0,0.08515138]
[1625627244183,6.65758352,34191.0,34190.0,0.25543829]
[1625627244725,6.65758352,34191.0,34190.0,0.08515138]
[1625627244967,6.65758352,34191.0,34189.0,0.51090254]
[1625627244968,6.65758352,34191.0,34189.0,0.08516728]
[1625627245148,6.37399457,34190.0,34189.0,0.08516728]
[1625627245268,6.68152457,34190.0,34189.0,0.08516728]
[1625627245388,6.73059838,34190.0,34189.0,0.25549934]
[1625627245569,6.69606299,34190.0,34189.0,0.25549934]
[1625627245689,6.69606299,34190.0,34189.0,0.08516728]
[1625627245869,6.69606299,34190.0,34189.0,0.85135098]
[1625627246111,5.14571102,34190.0,34189.0,0.51081059]
[1625627247073,5.14571102,34190.0,34189.0,1.19151458]
[1625627248155,5.14571102,34190.0,34189.0,0.85118085]
[1625627248396,6.69596725,34190.0,34189.0,0.25535652]
[1625627249539,6.69596725,34190.0,34188.0,0.59584942]
[1625627249840,6.37376063,34189.0,34188.0,0.25537406]
[1625627250080,6.38830534,34189.0,34188.0,0.08512469]
[1625627250445,6.38830534,34189.0,34187.0,0.59571879]
[1625627250681,6.37314487,34188.0,34187.0,0.59571879]
[1625627250924,6.38769043,34188.0,34187.0,0.59571879]
[1625627251043,6.38769043,34188.0,34185.0,0.25650607]
[1625627251228,6.37336481,34186.0,34185.0,0.25650607]
[1625627251465,6.38791033,34186.0,34185.0,0.25650607]
[1625627251767,6.86906121,34186.0,34185.0,0.25650607]
[1625627252187,6.86906121,34186.0,34185.0,0.08616869]
[1625627253268,6.86906121,34186.0,34185.0,0.8514834]
[1625627253269,5.31886241,34186.0,34185.0,0.8514834]
[1625627253686,5.31886241,34186.0,34185.0,0.51129004]
[1625627253871,5.31886241,34186.0,34185.0,0.85135953]
[1625627254889,5.31886241,34186.0,34185.0,0.51092873]
[1625627255972,5.31886241,34186.0,34185.0,0.08587137]
[1625627256515,5.31886241,34186.0,34185.0,0.001]
[1625627257235,5.31886241,34186.0,34184.0,0.25461474]
[1625627257355,4.81851738,34185.0,34184.0,0.25461474]
[1625627257475,4.83306274,34185.0,34184.0,0.25461474]
[1625627257718,5.07363818,34185.0,34184.0,0.59400346]
[1625627258017,5.07363818,34185.0,34184.0,0.25461474]
[1625627259162,5.07363818,34185.0,34184.0,0.50879432]
[1625627259342,3.69699267,34185.0,34184.0,0.50879432]
[1625627260303,5.07321691,34185.0,34184.0,0.84794019]
[1625627260542,3.69699267,34185.0,34184.0,0.84794019]
[1625627261088,5.07312396,34185.0,34184.0,0.5935298]
[1625627261265,5.07312396,34185.0,34184.0,0.25438393]
[1625627261985,5.07312396,34185.0,34184.0,0.59354427]
[1625627262345,5.07312396,34185.0,34184.0,0.50874963]
[1625627262467,3.69699267,34185.0,34184.0,0.50874963]
[1625627262586,3.69699267,34185.0,34184.0,0.59353097]
[1625627262587,5.07304659,34185.0,34184.0,0.59353097]
[1625627263370,3.69699267,34185.0,34184.0,0.50861159]
[1625627263609,5.0732134,34185.0,34184.0,0.84772578]
[1625627264035,5.0732134,34185.0,34184.0,0.50867594]
[1625627264758,5.0732134,34185.0,34184.0,0.59345795]
[1625627265059,5.0732134,34185.0,34184.0,0.50867594]
[1625627265238,5.0732134,34185.0,34184.0,0.33911419]
[1625627265657,5.0732134,34185.0,34184.0,0.50873024]
[1625627265897,5.0732134,34185.0,34184.0,0.59353674]
[1625627266560,5.0732134,34185.0,34184.0,0.25442255]
[1625627267404,5.0732134,34185.0,34184.0,0.59371726]
[1625627267525,5.0732134,34185.0,34184.0,0.50891076]
[1625627267946,5.0732134,34185.0,34184.0,0.59374314]
[1625627268548,5.0732134,34185.0,34184.0,0.50891076]
[1625627268668,5.0732134,34185.0,34184.0,0.5937391]
[1625627268908,5.0732134,34185.0,34184.0,0.50891076]
[1625627269027,5.3169034,34185.0,34184.0,0.50891076]
[1625627269566,5.3169034,34185.0,34184.0,0.59380545]
[1625627269809,5.3169034,34185.0,34184.0,0.50891076]
[1625627270111,5.0732134,34185.0,34184.0,0.84857802]
[1625627271014,4.83263796,34185.0,34184.0,0.50928331]
[1625627271311,4.83263796,34185.0,34184.0,3.39529721]
[1625627271312,1.21930375,34185.0,34184.0,3.39529721]
[1625627271497,0.27292839,34185.0,34184.0,4.75073968]
[1625627271731,0.10073038,34185.0,34184.0,4.75073968]
[1625627271850,0.10073038,34185.0,34184.0,5.472466]
[1625627271973,0.01454536,34185.0,34184.0,5.472466]
[1625627273412,0.25936312,34186.0,34184.0,5.472466]
[1625627273594,0.25936312,34186.0,34185.0,4.74292881]
[1625627273715,0.25936312,34186.0,34185.0,5.04251526]
[1625627273895,0.2739172,34186.0,34185.0,5.04251526]
[1625627274015,0.10173293,34186.0,34185.0,5.04251526]
[1625627274257,0.01555408,34186.0,34185.0,5.04251526]
[1625627274501,0.001,34186.0,34185.0,5.04251526]
[1625627276239,0.0871781,34186.0,34185.0,5.04251526]
[1625627276481,0.001,34186.0,34185.0,5.04251526]
[1625627276723,0.08717819,34186.0,34185.0,5.04251526]
[1625627277141,0.51738438,34186.0,34185.0,5.04251526]
[1625627277260,0.51738438,34186.0,34185.0,4.74706526]
[1625627277441,0.51738438,34186.0,34185.0,4.74292881]
[1625627277980,0.86143226,34186.0,34185.0,4.74292881]
[1625627278342,1.20549349,34186.0,34185.0,3.38780629]
[1625627278520,1.22004862,34186.0,34185.0,3.38780629]
[1625627278641,2.25239773,34186.0,34185.0,3.38780629]
[1625627279722,2.25239773,34186.0,34185.0,2.20207409]
[1625627279902,2.49297317,34186.0,34185.0,2.20207409]
[1625627280023,3.69745294,34186.0,34185.0,2.20207409]
[1625627280144,3.69745294,34186.0,34185.0,1.1857322]
[1625627280809,2.49297317,34186.0,34185.0,1.1857322]
[1625627280928,2.49297317,34186.0,34185.0,2.20337083]
[1625627281473,3.6974815,34186.0,34185.0,2.20337083]
[1625627284296,3.6974815,34186.0,34185.0,1.1857322]
[1625627285436,3.6974815,34186.0,34185.0,2.20042981]
[1625627285921,3.6974815,34186.0,34185.0,1.1857322]
[1625627286043,3.6974815,34186.0,34185.0,2.20064654]
[1625627286765,2.49297317,34186.0,34185.0,2.20064654]
[1625627287006,1.46062406,34186.0,34185.0,3.38412692]
[1625627287126,1.46062406,34186.0,34185.0,3.62241692]
[1625627287368,1.44506893,34186.0,34185.0,3.62241692]
[1625627287491,1.20449349,34186.0,34185.0,4.97502975]
[1625627288029,1.20449349,34186.0,34185.0,5.21560519]
[1625627288448,0.51623334,34186.0,34185.0,5.21560519]
[1625627288749,1.21935564,34186.0,34185.0,3.62470236]
[1625627288990,1.21935564,34186.0,34185.0,4.977812]
[1625627289230,1.20479527,34186.0,34185.0,4.977812]
[1625627289773,1.21935567,34186.0,34185.0,4.977812]
[1625627290011,1.20479527,34186.0,34185.0,4.977812]
[1625627291452,1.21935558,34186.0,34185.0,4.977812]
[1625627292597,2.25233468,34186.0,34185.0,3.62470236]
[1625627295600,3.45770233,34186.0,34185.0,3.62470236]
[1625627295840,3.45770233,34186.0,34185.0,2.44122198]
[1625627297047,3.45770233,34186.0,34185.0,2.20064654]
[1625627297887,2.25233468,34186.0,34185.0,3.38486807]
[1625627298067,2.25233468,34186.0,34185.0,3.62544351]
[1625627298191,2.25233468,34186.0,34185.0,4.98291397]
[1625627298852,1.21935558,34186.0,34185.0,4.98291397]
[1625627299271,2.25291571,34186.0,34185.0,4.98291397]
[1625627301377,1.21935558,34186.0,34185.0,4.98291397]
[1625627303783,0.53079365,34186.0,34185.0,4.98291397]
[1625627306850,0.87528653,34186.0,34185.0,4.98291397]
[1625627307389,0.01456031,34186.0,34185.0,0.24471088]
[1625627307690,0.87571185,34186.0,34185.0,4.97786608]
[1625627309732,0.35905536,34186.0,34185.0,4.97786608]
[1625627309975,0.53136668,34186.0,34185.0,4.97786608]
[1625627311177,0.53136668,34186.0,34185.0,4.97373064]
[1625627311178,0.51680637,34186.0,34185.0,4.97373064]
[1625627311413,0.53144591,34186.0,34185.0,4.97784443]
[1625627313159,0.87575874,34186.0,34185.0,4.97784443]
[1625627315263,0.53145757,34186.0,34185.0,4.97784443]
[1625627315685,0.27320831,34186.0,34185.0,4.97784443]
[1625627315984,0.10088533,34186.0,34185.0,4.97784443]
[1625627316948,0.10088533,34186.0,34185.0,6.49834405]
[1625627317432,0.10088533,34186.0,34185.0,4.97784443]
[1625627317551,0.617687,34186.0,34185.0,4.97784443]
[1625627318214,0.53144121,34186.0,34185.0,4.97784443]
[1625627318695,0.87579112,34186.0,34185.0,4.97784443]
[1625627318935,0.53131406,34186.0,34185.0,4.97784443]
[1625627319834,1.22018513,34186.0,34185.0,4.97784443]
[1625627324829,0.53131406,34186.0,34185.0,4.97784443]
[1625627325973,0.5317766,34186.0,34185.0,6.49899549]
[1625627326211,0.8763044,34186.0,34185.0,6.49899549]
[1625627326932,0.53160378,34186.0,34185.0,6.49899549]
[1625627327172,0.87638463,34186.0,34185.0,6.49899549]
[1625627327412,0.53160378,34186.0,34185.0,6.49899549]
[1625627327832,0.3594212,34186.0,34185.0,6.49899549]
[1625627328073,0.87650833,34186.0,34185.0,6.49899549]
[1625627328192,0.87650833,34186.0,34185.0,6.58639549]
[1625627329097,0.53172667,34186.0,34185.0,6.58639549]
[1625627329457,0.53172667,34186.0,34185.0,6.49899549]
[1625627329579,1.22127071,34186.0,34185.0,6.49899549]
[1625627330059,1.22127071,34186.0,34185.0,4.97784443]
[1625627330301,1.22127071,34186.0,34185.0,6.49925827]
[1625627331443,2.25576385,34186.0,34185.0,6.49925827]
[1625627333368,2.25576385,34186.0,34185.0,4.97784443]
[1625627335049,1.22127071,34186.0,34185.0,6.49898768]
[1625627335349,0.87666034,34186.0,34185.0,6.49898768]
[1625627335529,0.53212616,34186.0,34185.0,6.49898768]
[1625627335709,0.87688818,34186.0,34185.0,6.49898768]
[1625627336190,0.53195451,34186.0,34185.0,6.49898768]
[1625627336490,1.22164964,34186.0,34185.0,6.49898768]
[1625627339442,1.22164964,34186.0,34185.0,6.84000768]
[1625627339560,0.53195451,34186.0,34185.0,6.84000768]
[1625627340162,0.87688765,34186.0,34185.0,6.84000768]
[1625627340341,0.27356626,34186.0,34185.0,6.84000768]
[1625627340584,0.08636316,34187.0,34185.0,6.84000768]
[1625627340704,0.08636316,34187.0,34186.0,0.0874]
[1625627340881,0.17255177,34190.0,34186.0,5.15327934]
[1625627341121,0.17254136,34191.0,34189.0,5.06263527]
[1625627341361,0.002,34192.0,34190.0,5.06013176]
[1625627341481,0.002,34192.0,34191.0,5.05975921]
[1625627341660,3.409e-05,34193.0,34191.0,5.05975921]
[1625627341783,1.03731434,34197.0,34191.0,5.05975921]
[1625627341901,1.03731434,34197.0,34191.0,5.06387164]
[1625627342022,0.003,34197.0,34196.0,10.16842517]
[1625627342384,0.01765463,34197.0,34196.0,10.17253749]
[1625627342503,0.01765463,34197.0,34196.0,10.89426381]
[1625627342621,0.003,34197.0,34196.0,10.89426381]
[1625627342863,0.0176541,34197.0,34196.0,10.89426381]
[1625627343162,1.03728838,34202.0,34196.0,10.89426381]
[1625627343405,0.01461101,34201.0,34197.0,0.00412814]
[1625627343583,0.01461101,34201.0,34199.0,1.51373161]
[1625627343705,0.01461101,34201.0,34200.0,5.04525094]
[1625627343944,0.01461101,34201.0,34200.0,5.04937898]
[1625627344185,0.01461101,34201.0,34200.0,3.5358037]
[1625627344546,0.01461101,34201.0,34200.0,3.77637914]
[1625627344666,0.01461101,34201.0,34200.0,3.84887914]
[1625627344788,0.01461117,34202.0,34200.0,3.84887914]
[1625627345028,0.01461108,34201.0,34200.0,3.84887914]
[1625627345148,0.01461108,34201.0,34200.0,0.31720348]
[1625627345269,0.01461113,34202.0,34200.0,0.31720348]
[1625627345390,0.01461113,34202.0,34200.0,3.84537103]
[1625627345570,0.01461113,34202.0,34201.0,3.53241167]
[1625627345870,0.004,34203.0,34201.0,3.52828347]
[1625627346171,0.004,34203.0,34202.0,3.52830418]
[1625627346652,0.004,34203.0,34202.0,4.00945506]
[1625627347071,0.004,34203.0,34202.0,4.09765506]
[1625627347194,1.03107343,34208.0,34202.0,4.09765506]
[1625627347313,1.20289036,34210.0,34202.0,4.59765506]
[1625627347436,1.20582481,34214.0,34208.0,1.17271004]
[1625627347553,1.20582481,34214.0,34208.0,1.45604004]
[1625627347674,0.003,34214.0,34210.0,1.17200904]
[1625627347973,0.003,34214.0,34212.0,1.17142386]
[1625627348576,0.003,34214.0,34213.0,0.72172632]
[1625627348996,0.003,34214.0,34213.0,1.89250164]
[1625627349236,0.003,34214.0,34213.0,0.72172632]
[1625627350319,0.003,34215.0,34213.0,0.72172632]
[1625627350679,0.003,34215.0,34213.0,0.96230176]
[1625627353027,0.003,34215.0,34213.0,1.25471176]
[1625627354954,0.003,34215.0,34213.0,0.96230176]
[1625627355677,0.3534,34215.0,34213.0,0.96230176]
[1625627356279,0.3504,34215.0,34213.0,0.96230176]
[1625627356698,0.59097544,34215.0,34213.0,0.96230176]
[1625627357299,1.7903686,34215.0,34213.0,0.96230176]
[1625627357480,1.54979316,34215.0,34213.0,0.96230176]
[1625627357661,0.3504,34215.0,34213.0,0.96230176]
[1625627360909,1.43971822,34217.0,34213.0,0.96230176]
[1625627363130,0.24057544,34217.0,34213.0,0.96230176]
[1625627363674,1.43881305,34217.0,34213.0,0.96230176]
[1625627365536,1.19803816,34216.0,34213.0,0.96230176]
[1625627365657,1.52269033,34216.0,34213.0,0.96230176]
[1625627365779,1.19797626,34215.0,34213.0,0.48115088]
[1625627365897,1.19797626,34215.0,34210.0,0.001]
[1625627366018,1.19809759,34214.0,34210.0,0.001]
[1625627366320,1.19817933,34211.0,34210.0,0.001]
[1625627366437,1.2128038,34211.0,34210.0,0.001]
[1625627366920,2.822771,34211.0,34210.0,0.001]
[1625627368061,4.36337366,34211.0,34210.0,0.001]
[1625627368909,4.6039491,34211.0,34210.0,0.001]
[1625627369143,3.867,34205.0,34202.0,0.0725]
[1625627369264,1.1985154,34204.0,34202.0,0.0725]
[1625627369505,1.19855762,34203.0,34202.0,0.0725]
[1625627369805,2.58285159,34203.0,34202.0,0.0001]
[1625627370952,3.30457791,34203.0,34202.0,0.0001]
[1625627371369,3.30457791,34203.0,34200.0,0.003]
[1625627371549,3.30457791,34203.0,34195.0,0.004]
[1625627371730,2.56858776,34201.0,34195.0,0.004]
[1625627371852,1.1986543,34198.0,34195.0,0.004]
[1625627372090,1.5017643,34198.0,34195.0,0.004]
[1625627372571,1.21327726,34197.0,34195.0,0.004]
[1625627372751,0.01456837,34197.0,34195.0,0.004]
[1625627372930,0.01456844,34196.0,34195.0,0.004]
[1625627373053,0.49571932,34196.0,34195.0,0.004]
[1625627373293,0.48115088,34196.0,34195.0,0.004]
[1625627373532,4.79295088,34196.0,34195.0,0.004]
[1625627374313,4.79295088,34196.0,34194.0,0.004]
[1625627377380,4.79295088,34196.0,34192.0,0.24057544]
[1625627379004,5.03352632,34196.0,34192.0,0.24057544]
[1625627381229,6.06128378,34196.0,34192.0,0.24057544]
[1625627382311,1.02779395,34195.0,34192.0,0.24057544]
[1625627383090,1.37659395,34195.0,34192.0,0.24057544]
[1625627383512,0.3488,34195.0,34192.0,0.24057544]
[1625627384234,1.37662549,34195.0,34192.0,0.24057544]
[1625627385017,0.3488,34195.0,34192.0,0.24057544]
[1625627385194,6.06134704,34196.0,34192.0,0.24057544]
[1625627385314,1.26839616,34196.0,34192.0,0.56108544]
[1625627385495,0.24057544,34196.0,34192.0,0.56108544]
[1625627385983,0.24057544,34196.0,34192.0,1.56981141]
[1625627386218,0.24057544,34196.0,34193.0,1.0085915]
[1625627386395,0.24057544,34196.0,34194.0,1.00836625]
[1625627386879,0.24057544,34196.0,34193.0,1.00863071]
[1625627387000,0.24057544,34196.0,34194.0,4.1972]
[1625627387179,0.24057544,34196.0,34195.0,0.24057544]
[1625627389162,1.50908172,34196.0,34191.0,0.001]
[1625627389282,1.81778172,34196.0,34191.0,0.001]
[1625627389404,1.02795065,34195.0,34191.0,0.001]
[1625627390002,1.02800433,34194.0,34191.0,0.001]
[1625627390363,1.02804438,34192.0,34191.0,0.001]
[1625627390662,4.83144438,34192.0,34191.0,0.001]
[1625627391084,5.07201982,34192.0,34191.0,0.001]
[1625627391625,5.08661893,34192.0,34191.0,0.001]
[1625627392765,4.05857455,34192.0,34191.0,0.001]
[1625627392887,5.07181335,34192.0,34191.0,0.001]
[1625627393125,4.05857414,34192.0,34191.0,0.001]
[1625627393965,5.08641894,34192.0,34191.0,0.001]
[1625627395287,5.08641894,34192.0,34187.0,0.001]
[1625627395584,0.01459897,34191.0,34187.0,0.001]
[1625627397147,0.24057544,34188.0,34187.0,0.001]
[1625627397689,0.25517417,34188.0,34187.0,0.001]
[1625627398768,0.58212417,34188.0,34187.0,0.001]
[1625627402500,0.25517417,34188.0,34187.0,0.30444]
[1625627403338,0.25517417,34188.0,34187.0,0.54501544]
[1625627405265,0.25517417,34188.0,34187.0,0.24157544]
[1625627407310,0.25517417,34188.0,34187.0,0.24057544]
[1625627409955,0.01459873,34188.0,34187.0,0.57410544]
[1625627410316,0.01461335,34189.0,34187.0,0.57410544]
[1625627410616,0.01461342,34188.0,34187.0,0.57410544]
[1625627411036,0.01461353,34189.0,34187.0,0.57410544]
[1625627413622,0.01461353,34189.0,34187.0,1.24719245]
[1625627414585,0.01461353,34189.0,34188.0,0.67292813]
[1625627414823,0.01461353,34189.0,34187.0,1.24718207]
[1625627415002,0.01461353,34189.0,34188.0,0.67315301]
[1625627416385,0.01461353,34189.0,34188.0,1.68325485]
[1625627416625,0.01461304,34190.0,34188.0,1.68325485]
[1625627416928,0.01461304,34190.0,34189.0,0.6732909]
[1625627417117,0.01461304,34190.0,34189.0,1.68291849]
[1625627417347,0.01461304,34190.0,34188.0,0.67392816]
[1625627418734,0.01461304,34190.0,34187.0,0.91457043]